bitfinex-derivatives/quotes_ETHF0:USTF0_20250804
["timestamp","ask_amount","ask_price","bid_price","bid_amount"]
[1754322727361,0.8137,3644.2,3644.1,4.94277]
[1754322727656,0.8137,3644.5,3644.4,0.54873]
[1754322727864,1.70752,3644.5,3644.4,0.363]
[1754322728154,0.7901,3644.4,3644.3,0.54875]
[1754322728360,0.8137,3644.3,3644.2,0.92865]
[1754322728553,0.8137,3644.3,3644.2,1.37195]
[1754322728960,0.8137,3644.3,3644.2,1.73495]
[1754322729157,0.71375128,3644.6,3643.7,3.2078]
[1754322729366,1.70762,3643.8,3643.7,3.2078]
[1754322729656,0.3451,3644.2,3643.7,4.394]
[1754322729957,0.8137,3644.4,3644.3,1.1862]
[1754322730156,1.1457,3644.4,3644.3,0.363]
[1754322730352,0.54875,3644.3,3644.0,0.54878]
[1754322730854,1.1391,3644.1,3644.0,0.54878]
[1754322731257,0.3725,3644.4,3644.3,0.54875]
[1754322731458,0.8071,3644.4,3644.3,1.1745]
[1754322732062,1.1391,3644.4,3644.3,0.3544]
[1754322732255,0.54873,3644.5,3644.3,0.54873]
[1754322732460,3.75651,3644.6,3644.4,0.54872]
[1754322732860,1.1391,3644.5,3644.4,0.54872]
[1754322733061,1.1391,3644.5,3644.4,0.90312]
[1754322733358,3.2078,3644.6,3644.5,1.1745]
[1754322733564,3.2078,3644.6,3644.5,0.3544]
[1754322733565,4.0149,3644.6,3644.5,0.3544]
[1754322733764,4.0149,3644.6,3644.5,1.1745]
[1754322734567,3.2078,3644.6,3644.5,1.1745]
[1754322735767,3.2078,3644.6,3644.5,1.9412]
[1754322736765,1.3441,3644.9,3644.8,1.9412]
[1754322737563,0.537,3644.9,3644.8,1.4704]
[1754322737868,0.537,3644.9,3644.8,1.9412]
[1754322738071,1.3441,3644.9,3644.8,2.48987]
[1754322738870,0.332,3645.2,3645.1,0.54863]
[1754322739070,1.3441,3645.2,3645.1,2.48983]
[1754322740069,0.4346,3645.4,3645.3,0.5486]
[1754322740373,4.5519,3645.5,3645.4,1.4704]
[1754322740566,4.7798,3645.5,3645.4,0.8199]
[1754322740767,5.1118,3645.5,3645.4,0.8199]
[1754322741975,5.1118,3645.5,3645.4,1.1692]
[1754322742175,5.1118,3645.5,3645.4,1.64]
[1754322742876,5.1118,3645.5,3645.4,0.8199]
[1754322743274,5.1118,3645.5,3645.4,1.1692]
[1754322743574,4.1794,3645.5,3645.4,1.9412]
[1754322743875,0.9716,3645.5,3645.4,1.9412]
[1754322744075,0.4346,3645.8,3645.7,2.48974]
[1754322744278,3.2078,3646.4,3645.9,0.4655]
[1754322744470,3.2078,3646.4,3646.0,0.54849]
[1754322744471,1.904,3646.2,3646.0,0.54849]
[1754322744672,1.904,3646.1,3646.0,0.54849]
[1754322744979,1.572,3646.1,3646.0,2.48969]
[1754322745177,1.572,3646.1,3646.0,1.36839]
[1754322745178,1.904,3646.1,3646.0,1.36839]
[1754322745377,1.31339,3646.0,3645.9,0.5485]
[1754322745677,1.904,3646.0,3645.9,0.5485]
[1754322746574,1.904,3645.8,3645.7,1.36842]
[1754322746770,1.904,3645.8,3645.7,2.48972]
[1754322747367,1.904,3645.8,3645.7,0.8199]
[1754322747673,1.8967,3645.6,3645.5,0.78846]
[1754322747867,0.54857,3645.5,3645.3,4.3823]
[1754322748080,1.8967,3645.4,3645.3,1.64]
[1754322748273,1.8967,3645.4,3645.3,1.9412]
[1754322749174,0.7649,3645.0,3644.9,2.18866]
[1754322749479,0.537,3645.2,3645.1,1.31533]
[1754322749677,0.537,3645.2,3645.1,0.7667]
[1754322750179,0.537,3645.2,3645.1,1.9412]
[1754322750376,0.9716,3645.2,3645.1,1.9412]
[1754322751575,0.7391,3645.2,3645.1,1.9412]
[1754322751771,2.01068,3645.5,3645.4,1.1211]
[1754322751972,2.01068,3645.5,3645.4,0.8199]
[1754322752174,2.44528,3645.5,3645.4,0.8199]
[1754322754082,2.44528,3645.5,3645.4,1.9412]
[1754322754282,1.8967,3645.4,3645.3,1.08969]
[1754322754481,1.8967,3645.4,3645.3,2.48979]
[1754322754970,1.572,3645.4,3645.3,2.48979]
[1754322755571,1.3441,3645.4,3645.3,2.48979]
[1754322756182,0.9716,3645.4,3645.3,2.48979]
[1754322756380,0.537,3645.7,3645.6,2.48975]
[1754322756776,1.3441,3646.0,3645.9,0.78841]
[1754322756977,1.24722325,3646.0,3645.9,2.48971]
[1754322757281,0.9716,3646.0,3645.9,2.48971]
[1754322757480,3.2078,3646.1,3645.9,2.48971]
[1754322757678,3.2078,3646.1,3646.0,1.9412]
[1754322758379,5.1045,3646.1,3646.0,0.3544]
[1754322758577,0.7649,3645.9,3645.8,1.71771]
[1754322758783,1.8967,3645.6,3645.5,1.36847]
[1754322759377,1.3441,3645.6,3645.5,2.48977]
[1754322759578,0.9095,3645.9,3645.8,1.31522]
[1754322759785,1.3441,3645.9,3645.8,2.48972]
[1754322760282,1.572,3645.9,3645.8,2.48972]
[1754322760780,0.9716,3645.9,3645.8,2.48972]
[1754322760982,1.5969,3645.6,3645.5,0.4684]
[1754322761184,1.892,3645.6,3645.5,2.00035]
[1754322761385,1.5728,3645.6,3645.5,2.43645]
[1754322762078,1.892,3645.6,3645.5,2.43645]
[1754322762478,0.9864,3645.6,3645.5,2.43645]
[1754322763183,1.3304,3645.6,3645.5,2.43645]
[1754322763385,1.5728,3645.9,3645.8,1.30472]
[1754322763578,1.5728,3645.9,3645.8,2.43642]
[1754322763974,1.892,3645.9,3645.8,2.43642]
[1754322764474,1.892,3645.9,3645.8,1.8879]
[1754322764878,1.892,3645.9,3645.8,1.4518]
[1754322765484,0.519,3645.9,3645.8,1.8879]
[1754322765686,1.3304,3645.9,3645.8,1.8879]
[1754322765982,1.892,3645.9,3645.8,1.8879]
[1754322766384,1.5728,3645.9,3645.8,1.8879]
[1754322766788,0.519,3645.9,3645.8,1.8879]
[1754322767784,1.892,3646.2,3646.1,1.30468]
[1754322768087,1.5728,3646.2,3646.1,2.43638]
[1754322768490,1.3304,3646.2,3646.1,2.43638]
[1754322769487,1.3304,3646.8,3646.7,1.06969]
[1754322769694,0.84257127,3646.8,3646.7,2.08999]
[1754322769888,0.71124035,3646.8,3646.7,2.08999]
[1754322770083,1.3304,3646.8,3646.7,2.43629]
[1754322770989,0.9864,3646.5,3646.4,2.43633]
[1754322771292,1.548,3646.5,3646.4,1.36313]
[1754322771487,1.892,3646.5,3646.4,1.36313]
[1754322771788,1.892,3646.5,3646.4,0.2335]
[1754322771995,0.7614,3646.2,3646.1,1.65397]
[1754322772195,1.5728,3646.2,3646.1,2.09007]
[1754322772692,1.5728,3646.2,3646.1,2.43637]
[1754322772893,1.892,3646.2,3646.1,2.43637]
[1754322773795,1.892,3646.2,3646.1,1.36317]
[1754322774496,1.892,3646.2,3646.1,2.43637]
[1754322775691,1.5728,3646.2,3646.1,2.43637]
[1754322775995,0.54841,3646.6,3646.4,0.54843]
[1754322776198,1.53481,3646.6,3646.5,1.8879]
[1754322776698,0.9864,3646.6,3646.5,1.8879]
[1754322777096,0.344,3646.8,3646.6,0.5484]
[1754322777288,0.863,3646.8,3646.7,1.8879]
[1754322777490,1.1054,3646.8,3646.7,1.8879]
[1754322777689,1.5728,3646.8,3646.7,1.8879]
[1754322780096,4.0192,3647.3,3646.7,1.1317]
[1754322780301,1.6496,3647.3,3647.2,1.8879]
[1754322780493,2.1336419,3647.6,3647.5,0.4684]
[1754322780695,2.1336419,3647.6,3647.5,0.8147]
[1754322780892,2.1336419,3647.6,3646.7,3.2078]
[1754322780893,0.519,3646.9,3646.8,1.8879]
[1754322781096,1.5728,3646.9,3646.8,1.8879]
[1754322781605,2.12116,3646.9,3646.8,0.8147]
[1754322781801,2.12116,3646.9,3646.8,1.8879]
[1754322782596,2.44036,3646.9,3646.8,1.8879]
[1754322783203,4.57856,3647.3,3646.5,3.75621]
[1754322783204,1.892,3646.6,3646.5,1.164]
[1754322783399,1.892,3646.6,3646.5,0.8147]
[1754322783899,1.30984,3646.4,3646.2,0.54845]
[1754322784100,1.892,3646.2,3646.1,5.64417]
[1754322784303,1.5728,3646.2,3646.1,5.0957]
[1754322784508,0.7614,3645.9,3645.8,1.8879]
[1754322784694,0.519,3645.9,3645.8,1.8879]
[1754322784898,0.7614,3645.8,3645.5,0.3463]
[1754322785099,2.12143,3645.1,3645.0,3.629446]
[1754322785405,1.892,3645.1,3645.0,1.8879]
[1754322785794,0.54867,3644.8,3644.7,2.465446]
[1754322786004,2.44067,3644.8,3644.7,3.280146]
[1754322786207,1.892,3644.8,3644.7,1.2508]
[1754322786402,2.44069,3644.7,3644.5,2.465446]
[1754322786608,1.892,3644.6,3644.5,0.8147]
[1754322786906,1.892,3644.6,3644.5,1.164]
[1754322787095,1.892,3644.3,3644.2,3.716246]
[1754322787298,4.0192,3644.9,3644.3,0.3463]
[1754322787495,1.1306,3644.8,3644.3,0.3463]
[1754322787702,1.0806,3644.8,3644.7,0.4684]
[1754322787906,1.62927,3644.8,3644.7,0.4684]
[1754322788313,2.44067,3644.8,3644.7,0.4684]
[1754322788505,2.44067,3644.8,3644.7,0.8147]
[1754322788801,1.31012,3644.5,3644.4,1.2538]
[1754322789007,2.44072,3644.5,3644.4,1.5416]
[1754322789404,3.2078,3644.9,3644.4,1.5416]
[1754322789601,0.54869,3644.8,3644.7,0.7562]
[1754322789803,2.12149,3644.8,3644.7,0.5812]
[1754322790100,1.892,3644.4,3644.3,1.4518]
[1754322790303,0.519,3644.4,3644.3,1.9145]
[1754322791305,1.1223,3645.0,3644.4,1.1316]
[1754322791603,1.5842,3645.0,3644.9,1.89]
[1754322791805,0.5448,3645.0,3644.9,1.89]
[1754322792103,3.75638,3645.5,3645.0,0.6689]
[1754322792310,5.11698,3645.5,3645.4,1.89]
[1754322792610,5.64708,3645.5,3645.4,1.1233]
[1754322792997,5.0985,3645.5,3645.4,1.1233]
[1754322793202,4.792,3645.5,3645.4,1.89]
[1754322793404,1.5842,3645.5,3645.4,1.89]
[1754322793604,1.0067,3645.5,3645.4,1.89]
[1754322793806,0.5448,3645.5,3645.4,1.89]
[1754322794406,1.0067,3645.5,3645.4,1.89]
[1754322794710,1.8907,3645.5,3645.4,1.89]
[1754322794910,1.3606,3645.5,3645.4,1.89]
[1754322795108,1.8907,3645.6,3645.5,1.64807]
[1754322795312,1.8907,3645.6,3645.5,2.43857]
[1754322795610,1.8907,3645.4,3645.3,0.54859]
[1754322796005,1.8907,3645.4,3645.3,1.34409]
[1754322796214,1.8907,3645.4,3645.3,2.43859]
[1754322797611,1.8907,3645.4,3645.3,0.7955]
[1754322797915,1.8907,3645.3,3645.2,0.5486]
[1754322798313,1.8907,3645.3,3645.2,2.4386]
[1754322799015,1.8907,3645.3,3645.2,1.89]
[1754322800009,1.8907,3645.3,3645.2,1.4273]
[1754322800315,1.8907,3645.1,3645.0,0.54863]
[1754322800607,1.8907,3645.0,3644.9,0.54865]
[1754322800811,1.8907,3645.0,3644.9,0.88975]
[1754322801211,1.8907,3645.0,3644.9,0.7955]
[1754322801807,1.8907,3645.0,3644.9,1.1233]
[1754322802008,1.8907,3645.0,3644.9,1.586]
[1754322803018,1.0067,3645.0,3644.9,1.89]
[1754322803211,0.5448,3645.5,3645.4,0.7584]
[1754322803717,1.5842,3645.5,3645.4,0.7584]
[1754322803920,1.5842,3645.5,3645.4,1.89]
[1754322804120,3.2078,3645.6,3645.5,1.00297]
[1754322804314,0.5448,3645.9,3645.8,2.43852]
[1754322804615,3.2078,3646.0,3645.8,1.30692]
[1754322804815,3.2078,3646.0,3645.9,1.89]
[1754322805015,3.7526,3646.0,3645.9,1.89]
[1754322805217,5.0985,3646.0,3645.9,1.89]
[1754322805611,3.7526,3646.0,3645.9,1.89]
[1754322805806,0.5448,3645.4,3645.3,1.4273]
[1754322806011,1.8907,3645.4,3645.3,1.34409]
[1754322806212,1.8907,3645.4,3645.3,1.67189]
[1754322806410,1.8907,3645.4,3645.3,1.34409]
[1754322806612,0.7684,3645.7,3645.6,1.00294]
[1754322806812,1.2303,3645.7,3645.6,2.43854]
[1754322807020,1.5842,3645.7,3645.6,2.43854]
[1754322807212,1.5842,3645.7,3645.2,1.37152]
[1754322807213,1.01195,3645.6,3645.5,0.54856]
[1754322807418,1.8907,3645.5,3645.4,0.54857]
[1754322807715,1.8907,3645.4,3645.3,1.00299]
[1754322808109,1.8907,3645.4,3645.3,1.34409]
[1754322808311,1.8907,3645.4,3645.3,2.43859]
[1754322808512,1.5842,3645.4,3645.3,2.43859]
[1754322808712,1.3606,3645.4,3645.3,2.43859]
[1754322808919,1.0067,3645.4,3645.3,2.43859]
[1754322810205,1.3606,3645.4,3645.3,2.43859]
[1754322810409,0.5448,3645.4,3645.3,2.43859]
[1754322810821,1.0067,3645.4,3645.3,2.43859]
[1754322811114,3.2078,3646.0,3645.3,0.7905]
[1754322811309,1.8907,3646.2,3646.1,1.67178]
[1754322811510,1.8907,3646.2,3646.1,2.43848]
[1754322811713,1.8907,3646.2,3646.1,1.89]
[1754322811915,1.8907,3646.2,3646.1,0.2188]
[1754322812217,1.8907,3646.0,3645.9,1.344]
[1754322812414,1.5842,3646.0,3645.9,1.648]
[1754322812617,1.5842,3646.0,3645.9,2.4385]
[1754322812813,1.3606,3646.0,3645.9,2.4385]
[1754322813013,1.31691,3645.9,3645.8,0.54851]
[1754322813220,2.43921,3645.9,3645.8,0.54851]
[1754322813511,1.8907,3645.9,3645.8,0.54851]
[1754322814613,4.792,3646.4,3646.3,0.76725]
[1754322814814,5.0985,3646.4,3646.3,2.43845]
[1754322815613,4.792,3646.4,3646.3,2.43845]
[1754322816014,5.0985,3646.4,3646.3,0.54845]
[1754322816415,1.8907,3646.4,3646.3,0.54845]
[1754322818716,1.8795,3646.3,3646.2,0.54846]
[1754322819116,1.8795,3646.1,3646.0,0.54848]
[1754322819516,0.305,3646.1,3646.0,2.43848]
[1754322819720,1.8795,3646.3,3646.2,1.97576]
[1754322820225,1.8795,3646.3,3646.2,2.43846]
[1754322820226,1.8319,3646.3,3646.2,2.43846]
[1754322820421,1.8319,3646.3,3646.2,2.42646]
[1754322821220,1.5374,3646.3,3646.2,2.42646]
[1754322821419,1.2088,3646.3,3646.2,0.54846]
[1754322821619,1.8319,3646.3,3646.2,0.2146]
[1754322821820,1.31626,3646.3,3646.1,0.54847]
[1754322822023,1.8133,3646.2,3646.1,0.54847]
[1754322823226,1.8133,3646.2,3646.1,1.33437]
[1754322823721,1.8133,3646.2,3646.1,0.54847]
[1754322824123,1.8133,3646.1,3646.0,0.54848]
[1754322824725,2.36178,3646.1,3646.0,0.54848]
[1754322825134,1.29771,3646.0,3645.9,0.9909]
[1754322825328,2.36181,3646.0,3645.9,0.7859]
[1754322825920,1.8133,3646.0,3645.9,0.7859]
[1754322826834,1.8133,3646.0,3645.9,1.8773]
[1754322827924,3.75624,3646.4,3646.0,0.54849]
[1754322828130,5.0211,3646.4,3646.3,1.8773]
[1754322828329,0.54841,3646.6,3646.5,0.2278]
[1754322828533,1.07461,3646.6,3646.5,1.8773]
[1754322828827,2.36171,3646.6,3646.5,1.8773]
[1754322829429,0.7492,3646.1,3646.0,1.0988]
[1754322829633,1.5188,3646.1,3646.0,1.8773]
[1754322830428,1.5188,3646.1,3646.0,2.42579]
[1754322831533,1.2958,3646.1,3646.0,2.42579]
[1754322831732,1.8133,3646.1,3646.0,2.42579]
[1754322832239,1.5188,3646.1,3646.0,2.42579]
[1754322832850,1.2958,3646.1,3646.0,2.42579]
[1754322833038,0.5262,3646.1,3646.0,2.42579]
[1754322833240,1.2958,3646.1,3646.0,2.42579]
[1754322833441,1.5188,3646.1,3646.0,2.42579]
[1754322834037,0.9672,3646.1,3646.0,2.42579]
[1754322834441,0.2922,3646.1,3646.0,2.42579]
[1754322835542,1.2958,3646.1,3646.0,2.42579]
[1754322835740,1.5188,3646.1,3646.0,2.42579]
[1754322836243,1.8133,3646.1,3646.0,2.42579]
[1754322838046,1.2958,3646.1,3646.0,2.42579]
[1754322838246,0.5262,3646.1,3646.0,2.42579]
[1754322839044,0.9672,3646.1,3646.0,2.42579]
[1754322839350,1.8133,3646.1,3646.0,2.42579]
[1754322841835,1.1902,3646.4,3646.3,0.99084]
[1754322842038,0.9672,3646.4,3646.3,2.42574]
[1754322842349,1.23772127,3646.6,3646.5,0.54842]
[1754322842544,0.5262,3646.6,3646.5,2.42572]
[1754322843248,1.8133,3646.9,3646.8,2.42567]
[1754322844554,0.7492,3646.7,3646.6,0.8919]
[1754322844743,1.8133,3646.7,3646.6,1.6828]
[1754322845048,1.8133,3646.7,3646.6,2.4257]
[1754322845247,1.5188,3646.7,3646.6,2.4257]
[1754322845947,1.5188,3646.7,3646.6,0.5484]
[1754322845948,1.8133,3646.7,3646.6,0.5484]
[1754322846446,1.8133,3646.3,3646.1,3.2078]
[1754322846754,0.7492,3645.7,3645.6,0.54854]
[1754322846949,1.4847,3645.7,3645.6,0.54854]
[1754322847250,1.8133,3645.2,3645.1,0.54862]
[1754322848248,0.5626,3644.7,3644.6,0.54869]
[1754322848445,1.1902,3644.2,3644.1,2.465446]
[1754322848645,1.8133,3644.1,3643.9,3.75659]
[1754322848847,1.5793,3644.0,3643.9,5.41929]
[1754322849046,1.8133,3644.0,3643.9,5.63389]
[1754322849847,0.5262,3644.0,3643.9,5.63389]
[1754322850050,0.8548,3644.3,3644.2,2.44016]
[1754322850249,0.5262,3644.3,3644.2,2.44016]
[1754322850646,0.9978,3644.3,3644.2,2.44016]
[1754322850853,1.3263,3644.3,3644.2,2.44016]
[1754322851656,0.5262,3644.3,3644.2,2.44016]
[1754322852662,4.2125,3644.7,3644.6,1.8799]
[1754322852958,5.0472,3644.7,3644.6,0.3294]
[1754322853155,1.8394,3644.5,3644.4,1.1277]
[1754322853357,1.8394,3644.5,3644.4,1.4242]
[1754322853557,1.8394,3644.5,3644.4,1.8799]
[1754322854752,0.8208,3644.9,3644.8,0.54867]
[1754322854958,0.8208,3644.9,3644.8,2.42857]
[1754322854959,0.5331,3644.9,3644.8,2.42857]
[1754322855453,0.3146,3645.1,3645.0,0.77754]
[1754322855654,1.8394,3645.1,3645.0,2.42854]
[1754322855855,1.8394,3645.1,3645.0,1.8799]
[1754322856061,1.8394,3644.9,3644.8,0.7908]
[1754322856353,1.8394,3644.7,3644.5,0.54871]
[1754322856559,0.7582,3644.3,3644.2,0.77765]
[1754322856763,1.8394,3644.2,3644.1,0.54877]
[1754322856953,1.8394,3644.2,3644.1,1.33957]
[1754322857658,1.8394,3644.2,3644.1,1.11067]
[1754322857860,1.8394,3644.2,3644.1,0.54877]
[1754322858161,1.8394,3644.2,3644.1,2.42867]
[1754322858356,1.8394,3644.2,3644.1,1.33957]
[1754322858856,1.8394,3644.2,3643.9,3.2078]
[1754322858857,1.5583,3644.0,3643.9,3.2078]
[1754322859060,1.8394,3644.0,3643.9,3.2078]
[1754322859862,1.3332,3644.0,3643.9,3.9986]
[1754322860051,1.8394,3644.0,3643.9,4.632]
[1754322860254,1.8394,3644.0,3643.9,5.0877]
[1754322860655,1.3332,3644.0,3643.9,5.0877]
[1754322860858,0.5331,3644.0,3643.9,5.0877]
[1754322861060,3.966,3644.7,3644.6,0.5487]
[1754322861261,5.0472,3644.7,3644.6,1.3395]
[1754322861758,1.8394,3644.7,3644.6,1.9729]
[1754322861959,1.5583,3644.7,3644.6,2.4286]
[1754322862157,1.8394,3644.7,3644.6,1.636]
[1754322862358,1.8394,3644.7,3644.6,2.4286]
[1754322862860,1.8394,3644.7,3644.6,1.9729]
[1754322863263,1.8394,3644.7,3644.6,2.4286]
[1754322863961,1.0047,3644.7,3644.6,2.4286]
[1754322864164,3.4889,3645.1,3645.0,1.6474]
[1754322864165,3.2078,3645.1,3645.0,1.6474]
[1754322864467,1.30684,3645.1,3644.9,0.54865]
[1754322864663,1.8394,3645.0,3644.9,0.54865]
[1754322864969,0.7582,3644.9,3644.8,0.54867]
[1754322865155,1.8394,3644.9,3644.8,0.54867]
[1754322866159,1.8394,3644.9,3644.8,1.97287]
[1754322866364,1.5583,3644.9,3644.8,2.42857]
[1754322866569,1.8394,3644.9,3644.8,2.42857]
[1754322867069,1.8394,3644.9,3644.8,0.54867]
[1754322867362,3.2078,3645.1,3644.4,0.7926]
[1754322867363,0.54873,3644.5,3644.4,0.54872]
[1754322867560,0.3146,3644.2,3644.1,0.54878]
[1754322867758,1.0393,3644.2,3644.1,2.42868]
[1754322868162,1.8394,3644.2,3644.1,2.42868]
[1754322869166,1.5583,3644.2,3644.1,2.42868]
[1754322869365,0.5331,3644.2,3644.1,2.42868]
[1754322870071,2.38805,3645.0,3644.9,1.33945]
[1754322870366,1.8394,3645.0,3644.9,1.63595]
[1754322870571,1.8394,3645.0,3644.9,2.42855]
[1754322870773,1.5583,3645.0,3644.9,0.54865]
[1754322870972,1.30686,3644.9,3644.8,1.01007]
[1754322871172,1.30686,3644.9,3644.8,0.4614]
[1754322871173,2.38806,3644.9,3644.8,0.4614]
[1754322872171,1.2924,3644.8,3644.7,1.33948]
[1754322872368,1.8394,3644.8,3644.7,2.42858]
[1754322872571,1.0047,3645.1,3645.0,2.42854]
[1754322872774,3.2078,3645.5,3645.4,1.8799]
[1754322873379,0.5331,3645.5,3645.4,1.8799]
[1754322874081,1.3332,3645.8,3645.7,2.42844]
[1754322874274,3.2078,3646.0,3645.9,1.00991]
[1754322874479,3.33876598,3646.0,3645.9,2.42841]
[1754322874773,4.2125,3646.0,3645.9,2.42841]
[1754322874974,0.97825455,3647.3,3646.1,1.3712]
[1754322875177,1.83985455,3647.4,3647.3,1.0409]
[1754322875371,0.99258774,3647.4,3647.3,1.0409]
[1754322875574,1.56468774,3647.4,3647.3,0.7908]
[1754322876175,1.4337,3647.4,3647.3,0.887]
[1754322876379,0.99255884,3647.4,3647.3,1.3778]
[1754322876582,0.8616,3647.4,3647.3,1.3778]
[1754322877082,1.3332,3647.4,3647.3,1.0409]
[1754322877880,2.45358,3647.4,3647.3,1.0409]
[1754322878178,1.9053,3647.4,3647.3,1.0409]
[1754322878374,0.5483,3647.3,3647.2,3.2078]
[1754322878578,2.12513,3647.1,3647.0,3.2078]
[1754322878774,2.45363,3647.1,3647.0,3.2078]
[1754322878980,2.45369,3646.7,3646.6,3.2078]
[1754322879578,2.45369,3646.7,3646.6,3.7697]
[1754322879980,2.45369,3646.7,3646.6,3.4403]
[1754322880376,2.45369,3646.7,3646.6,3.7867]
[1754322880584,2.45369,3646.7,3646.6,3.7805]
[1754322880879,0.54836,3646.9,3646.7,0.54839]
[1754322881078,0.6241,3646.9,3646.8,1.4006]
[1754322881284,1.84415,3647.0,3646.9,1.055]
[1754322881581,2.40835,3647.0,3646.9,0.2263]
[1754322882177,2.40835,3647.0,3646.9,0.8055]
[1754322883591,2.40835,3647.0,3646.9,0.9015]
[1754322883885,2.40835,3647.0,3646.9,1.055]
[1754322885282,2.40835,3647.0,3646.9,0.2328]
[1754322885587,2.40839,3646.7,3646.6,3.4341]
[1754322885784,2.40839,3646.7,3646.6,0.2263]
[1754322885979,0.54842,3646.5,3646.4,0.3464]
[1754322886185,2.40842,3646.5,3646.4,0.3464]
[1754322886388,2.40842,3646.5,3646.4,0.8055]
[1754322886688,0.54839,3646.7,3646.5,1.94901]
[1754322886891,0.54839,3646.7,3646.6,1.4006]
[1754322887088,0.3262,3646.9,3646.6,1.4006]
[1754322887393,0.54836,3646.9,3646.8,1.4006]
[1754322889686,1.2958,3646.9,3646.8,1.055]
[1754322889887,0.8651,3646.9,3646.8,1.4006]
[1754322890694,1.86,3646.9,3646.8,1.055]
[1754322891492,0.2979,3646.9,3646.8,1.4006]
[1754322891795,0.87445,3647.6,3647.5,1.4004]
[1754322891986,0.3262,3647.7,3647.6,1.69935]
[1754322892195,0.3262,3647.7,3647.6,1.94865]
[1754322892495,0.8651,3647.7,3647.6,1.94865]
[1754322892690,1.3071,3648.0,3647.9,1.16071]
[1754322892886,2.064,3648.0,3647.9,1.0548]
[1754322893291,0.6241,3648.0,3647.9,1.0548]
[1754322893494,0.3262,3648.0,3647.9,1.4004]
[1754322893995,1.1896,3647.7,3647.6,3.2078]
[1754322894292,1.86,3647.7,3647.6,3.2078]
[1754322894490,1.86,3647.7,3647.6,3.7805]
[1754322894690,1.86,3647.7,3647.6,3.2078]
[1754322895195,0.7589,3647.2,3647.1,3.2078]
[1754322895389,1.86,3647.2,3647.1,3.4341]
[1754322895590,1.86,3647.2,3647.1,3.7805]
[1754322895893,1.86,3647.2,3647.1,3.2078]
[1754322896094,1.86,3647.2,3647.1,3.4341]
[1754322896295,1.2958,3647.2,3647.1,4.0133]
[1754322896596,0.54831,3647.3,3647.2,1.16081]
[1754322896794,1.84411,3647.3,3647.2,1.60311]
[1754322896992,1.5158,3647.3,3647.2,1.60311]
[1754322897198,1.5158,3647.3,3647.2,1.0548]
[1754322897389,1.86,3647.3,3647.2,0.8055]
[1754322898092,0.54828,3647.5,3647.3,0.5483]
[1754322898395,2.40828,3647.5,3647.4,0.9014]
[1754322898695,2.40828,3647.5,3647.4,0.8055]
[1754322898995,2.40828,3647.5,3647.4,0.2263]
[1754322900001,2.40828,3647.5,3647.4,0.8055]
[1754322901100,0.8651,3647.5,3647.4,1.4004]
[1754322901295,1.2958,3647.5,3647.4,1.4004]
[1754322901703,1.86,3647.5,3647.4,0.2263]
[1754322901903,2.40831,3647.2,3647.1,1.35382]
[1754322902597,2.40831,3647.2,3647.1,0.77462]
[1754322903005,1.30515,3647.7,3647.1,3.6501]
[1754322903198,1.63335,3647.7,3647.6,1.4004]
[1754322903497,0.70948169,3647.8,3647.7,1.94864]
[1754322903706,1.38169211,3648.1,3648.0,1.16069]
[1754322903891,2.35859211,3648.1,3648.0,1.4004]
[1754322904091,2.35859211,3648.1,3648.0,1.0548]
[1754322904092,0.84279211,3648.1,3648.0,1.0548]
[1754322904298,0.84279211,3648.1,3648.0,1.4004]
[1754322904497,2.25605211,3648.3,3648.2,1.0548]
[1754322904699,1.97727042,3648.3,3648.2,1.0548]
[1754322904897,3.25095211,3648.3,3648.2,1.0548]
[1754322905696,0.54819,3648.0,3647.9,3.756]
[1754322905909,2.40819,3648.0,3647.9,4.5615]
[1754322906106,0.13331042,3648.0,3647.9,4.8108]
[1754322906406,1.84395,3648.3,3648.2,1.0548]
[1754322906608,3.25171257,3648.3,3648.2,1.0548]
[1754322908107,2.57025215,3648.3,3648.2,1.0548]
[1754322908607,2.22605215,3648.3,3648.2,1.0548]
[1754322908815,0.8651,3648.3,3648.2,1.4004]
[1754322909201,0.6241,3648.3,3648.2,1.4004]
[1754322909407,0.3262,3648.3,3648.2,1.4004]
[1754322909607,1.5158,3648.3,3648.2,1.4004]
[1754322909807,1.86,3648.3,3648.2,1.0548]
[1754322911511,0.8651,3648.3,3648.2,1.394]
[1754322911710,0.5201,3648.6,3648.5,1.91172]
[1754322912013,1.06818,3648.8,3648.7,1.91168]
[1754322912315,1.5574,3648.8,3648.7,1.91168]
[1754322913016,0.8555,3648.8,3648.7,1.91168]
[1754322913310,0.70896031,3648.9,3648.8,0.9761]
[1754322913509,1.70896031,3649.0,3648.9,1.91166]
[1754322913708,1.70896031,3649.0,3648.9,5.11946]
[1754322913915,1.8555,3649.0,3648.9,5.11946]
[1754322914112,2.5574,3649.0,3648.9,4.08256]
[1754322914317,2.8872,3649.0,3648.9,3.4223]
[1754322914504,0.54806,3648.9,3648.7,0.3267]
[1754322914710,1.8872,3648.8,3648.7,0.8713]
[1754322915010,1.8872,3648.8,3648.7,1.0244]
[1754322915612,0.5201,3648.6,3648.5,3.2078]
[1754322915811,0.7559,3648.6,3648.5,3.2078]
[1754322916314,1.8872,3648.6,3648.5,3.2078]